bitfinex/quotes_SOLUSD_20240718
["timestamp","ask_amount","ask_price","bid_price","bid_amount"]
[1721313145786,0.62661844,160.06,160.03,6.2486]
[1721313145992,0.62661844,160.06,160.02,6.2491]
[1721313146203,0.62661844,160.06,160.03,6.2488]
[1721313146491,22.2762,160.08,160.04,1.2496881]
[1721313146662,7.23671844,160.08,160.05,6.2479]
[1721313147082,7.23671844,160.08,160.04,6.2484]
[1721313147363,6.6101,160.08,160.05,6.248]
[1721313147786,6.6101,160.08,160.01,1.24950872]
[1721313147990,0.62661844,160.11,160.02,1.41941278]
[1721313148184,0.62661844,160.11,160.02,11.41941278]
[1721313148379,0.62661844,160.11,160.08,6.2468]
[1721313148680,0.62661844,160.11,160.04,1.2493149]
[1721313148888,0.62661844,160.11,160.05,1.24935303]
[1721313149274,0.62661844,160.11,160.07,6.2471]
[1721313149476,0.62661844,160.11,160.09,6.2464]
[1721313150006,0.62661844,160.11,160.07,6.2472]
[1721313150210,6.87251844,160.11,160.06,6.2475]
[1721313150502,0.62661844,160.1,160.05,6.2479]
[1721313150694,0.62661844,160.1,160.02,1.24946126]
[1721313150895,0.62661844,160.1,160.04,6.2483]
[1721313150896,6.2467,160.09,160.04,6.2483]
[1721313151102,41.2532,160.12,160.02,1.24946126]
[1721313151286,0.62661844,160.11,160.02,1.24946126]
[1721313151682,6.2477,160.06,159.99,1.24963429]
[1721313151886,0.62661844,160.05,159.99,1.24963429]
[1721313152081,0.62661844,160.05,160.01,6.2495]
[1721313152376,0.62661844,160.04,159.98,1.24987477]
[1721313152605,0.62661844,160.04,159.94,1.24997629]
[1721313152803,6.2488,160.03,159.98,6.2507]
[1721313153102,0.62661844,160.04,159.94,1.24997629]
[1721313153103,0.62661844,160.02,159.94,1.24997629]
[1721313153408,0.62661844,160.04,160.01,6.2496]
[1721313153585,0.62661844,160.04,160.03,6.2488]
[1721313153786,6.1421,160.05,159.98,10.0]
[1721313154007,6.1421,160.05,160.03,6.2484]
[1721313154687,6.1421,160.05,160.04,6.2484]
[1721313155001,0.62661844,160.07,160.04,6.2484]
[1721313155208,0.62661844,160.08,160.04,6.2484]
[1721313155408,6.87351844,160.08,160.03,6.2487]
[1721313155586,0.62661844,160.07,160.03,6.2487]
[1721313155912,0.62661844,160.07,160.04,6.2484]
[1721313156292,0.62661844,160.07,160.05,6.2479]
[1721313156588,0.62661844,160.08,160.04,6.2483]
[1721313157106,0.62661844,160.08,160.05,6.248]
[1721313157410,0.62661844,160.08,160.01,6.2492]
[1721313157611,49.38661844,160.07,159.96,1.24981423]
[1721313157778,6.2485,160.04,159.99,6.2503]
[1721313157985,0.62661844,160.03,159.99,6.2503]
[1721313158187,6.87551844,160.03,159.98,6.2507]
[1721313158790,6.2493,160.02,159.97,6.2511]
[1721313158991,0.62661844,160.01,159.97,6.2511]
[1721313159581,0.62661844,160.01,159.98,6.2507]
[1721313159887,6.87621844,160.01,159.94,1.2501626]
[1721313160088,23.36781844,160.01,159.94,1.2501626]
[1721313160391,23.36781844,160.01,159.96,6.2514]
[1721313160598,6.25,160.0,159.95,6.2518]
[1721313160901,0.62661844,159.99,159.95,6.2518]
[1721313161097,0.62661844,159.99,159.96,6.2513]
[1721313161515,0.62661844,159.99,159.93,1.25025045]
[1721313161688,0.62661844,160.0,159.97,6.2511]
[1721313161889,0.62661844,160.0,159.96,6.2514]
[1721313162515,0.62661844,160.0,159.97,6.2511]
[1721313162889,12.11821844,160.01,159.97,6.2511]
[1721313163300,12.11821844,160.01,159.98,6.2504]
[1721313163615,12.11821844,160.01,159.97,6.2511]
[1721313163810,18.36781844,160.01,159.96,6.2514]
[1721313164024,18.36781844,160.01,159.92,1.25024165]
[1721313164025,18.36781844,160.01,159.97,6.2511]
[1721313164319,12.11821844,160.01,159.97,6.2511]
[1721313164690,12.11821844,160.01,159.98,6.2506]
[1721313164914,6.6498,160.02,159.94,1.25019568]
[1721313165113,6.6498,160.02,160.0,6.2499]
[1721313165317,6.6498,160.02,159.99,6.2502]
[1721313165518,6.6498,160.02,159.98,6.2506]
[1721313165812,6.6498,160.02,159.97,6.251]
[1721313165990,12.8992,160.02,159.97,6.251]
[1721313166700,12.8992,160.02,159.98,6.2507]
[1721313167085,12.8992,160.02,159.97,6.251]
[1721313167292,6.2497,160.01,159.96,7.50149377]
[1721313167499,12.8991,160.02,159.97,6.2511]
[1721313168090,12.8991,160.02,159.95,1.25011967]
[1721313168091,6.2497,160.01,159.96,6.2514]
[1721313169203,6.25,160.0,159.96,6.2514]
[1721313170331,6.2497,160.01,159.96,6.2514]
[1721313170705,6.25,160.0,159.95,6.2518]
[1721313170902,55.4098,160.02,159.89,1.25019901]
[1721313171106,6.2509,159.98,159.93,6.2523]
[1721313171318,6.2512,159.97,159.93,6.2523]
[1721313171531,6.2508,159.98,159.93,6.2526]
[1721313171724,6.2511,159.97,159.93,6.2526]
[1721313172103,6.2508,159.98,159.93,6.2526]
[1721313172306,6.2508,159.98,159.94,6.2523]
[1721313172816,6.2508,159.98,159.89,1.25053948]
[1721313172817,6.2508,159.98,159.93,6.2526]
[1721313173942,6.2512,159.97,159.92,6.253]
[1721313175722,6.2512,159.97,159.93,6.2526]
[1721313176298,6.2508,159.98,159.93,6.2526]
[1721313176504,6.2508,159.98,159.9,1.25052962]
[1721313176505,6.2505,159.99,159.94,6.2521]
[1721313177114,6.25,160.0,159.95,6.2519]
[1721313177326,36.6298,160.02,159.96,6.2514]
[1721313177708,6.25,160.0,159.95,6.2518]
[1721313177908,55.4098,160.02,159.94,6.2523]
[1721313178110,55.4098,160.02,159.91,1.25031042]
[1721313178111,6.2508,159.98,159.91,1.25031042]
[1721313178323,6.2505,159.99,159.92,1.25036499]
[1721313178828,6.2505,159.99,159.94,6.252]
[1721313179404,36.6298,160.02,159.97,6.2508]
[1721313179608,6.2496,160.01,159.97,6.251]
[1721313179821,6.2496,160.01,159.96,6.2514]
[1721313180321,6.2496,160.01,159.96,6.2515]
[1721313180507,25.4298,160.02,159.92,1.25036499]
[1721313180708,6.2507,159.98,159.94,6.2522]
[1721313181011,6.2507,159.98,159.93,6.2526]
[1721313181224,6.2504,159.99,159.94,7.50262992]
[1721313181444,55.4098,160.02,159.92,1.25032992]
[1721313181609,6.2511,159.97,159.92,1.25032992]
[1721313181929,6.2504,159.99,159.94,6.2522]
[1721313182311,6.2512,159.97,159.92,6.253]
[1721313182510,6.2512,159.97,159.93,6.2526]
[1721313182816,6.2502,160.0,159.94,6.2522]
[1721313183028,6.2502,160.0,159.95,6.2518]
[1721313183941,12.8992,160.02,159.97,6.2508]
[1721313184435,6.6498,160.02,159.95,6.2515]
[1721313184637,6.2505,159.99,159.94,6.2522]
[1721313184941,55.4098,160.02,159.93,6.2526]
[1721313184942,6.2508,159.98,159.93,6.2526]
[1721313185106,6.2512,159.97,159.92,6.253]
[1721313186628,6.2512,159.97,159.93,6.2526]
[1721313186832,55.4098,160.02,159.89,1.25045876]
[1721313187032,55.4098,160.02,159.96,6.2513]
[1721313187326,36.6298,160.02,159.96,6.2513]
[1721313187714,6.2497,160.01,159.96,6.2513]
[1721313187928,6.6498,160.02,159.99,6.2502]
[1721313188533,12.899,160.02,159.98,6.2507]
[1721313188909,6.2496,160.01,159.93,1.25006959]
[1721313189108,6.2496,160.01,159.96,6.2512]
[1721313190021,6.2496,160.01,159.97,6.2511]
[1721313190531,6.2496,160.01,159.93,21.25006959]
[1721313190745,6.2496,160.01,159.94,45.0]
[1721313191036,6.25,160.0,159.95,6.2518]
[1721313191257,12.8991,160.02,159.97,6.2509]
[1721313191542,12.8991,160.02,159.97,6.251]
[1721313192117,6.2496,160.01,159.97,6.251]
[1721313192316,6.2501,160.0,159.94,1.25018113]
[1721313192717,6.6498,160.02,159.92,1.25030387]
[1721313193036,12.8992,160.02,159.97,6.2511]
[1721313193514,12.8992,160.02,159.93,1.25020817]
[1721313193515,6.6498,160.02,159.93,1.25020817]
[1721313193717,6.6498,160.02,159.93,46.25020817]
[1721313193917,6.6498,160.02,160.0,6.2498]
[1721313194640,6.6498,160.02,159.99,6.2501]
[1721313194939,15.5532,160.04,160.0,6.2499]
[1721313195157,6.2481,160.05,160.01,6.2495]
[1721313195456,12.3456,160.06,160.01,6.2495]
[1721313196367,6.0979,160.06,159.97,1.24986083]
[1721313196529,6.0979,160.06,160.03,6.2487]
[1721313196734,6.2473,160.07,159.98,11.41978212]
[1721313197130,6.2473,160.07,159.99,45.0]
[1721313197346,6.2473,160.07,160.0,1.24969948]
[1721313197745,16.5066,160.08,160.0,1.24969948]
[1721313197951,22.7535,160.08,160.03,6.2487]
[1721313198339,16.5066,160.08,160.0,1.24969948]
[1721313198529,6.2473,160.07,160.02,6.2491]
[1721313199436,22.7535,160.08,160.03,6.2487]
[1721313199847,16.5066,160.08,160.04,6.2483]
[1721313200234,22.7535,160.08,160.03,6.2487]
[1721313201532,16.5066,160.08,160.0,1.24969948]
[1721313201736,16.5066,160.08,160.01,6.2496]
[1721313202262,6.2476,160.06,160.01,6.2496]
[1721313202446,6.2473,160.07,160.02,6.2491]
[1721313202839,6.2476,160.06,160.02,6.2491]
[1721313203156,6.2476,160.06,160.01,6.2494]
[1721313204261,6.2486,160.04,159.98,1.24984916]
[1721313204465,65.2666,160.08,160.02,6.2492]
[1721313204466,6.2477,160.06,160.02,6.2492]
[1721313204635,46.4866,160.08,160.02,6.2492]
[1721313204835,6.2477,160.06,160.02,6.2492]
[1721313205063,6.2476,160.07,160.02,6.2491]
[1721313205269,6.2476,160.07,159.99,1.24994457]
[1721313205459,16.5066,160.08,160.0,1.24978044]
[1721313205646,16.5066,160.08,160.05,6.248]
[1721313206367,16.5066,160.08,160.04,6.2483]
[1721313206948,16.5066,160.08,160.03,6.2487]
[1721313207149,16.5066,160.08,160.04,6.2483]
[1721313207855,22.7535,160.08,160.04,6.2483]
[1721313208167,6.2473,160.07,160.0,1.24978044]
[1721313208366,16.5066,160.08,159.99,1.24976107]
[1721313208545,16.5066,160.08,159.99,46.24976107]
[1721313208860,6.2473,160.07,159.99,46.24976107]
[1721313209179,22.7535,160.08,160.03,6.2487]
[1721313209472,22.7535,160.08,160.04,6.2484]
[1721313209758,22.7535,160.08,160.03,6.2487]
[1721313209968,22.7535,160.08,160.02,6.2488]
[1721313209969,6.2472,160.07,160.02,6.2488]
[1721313210164,16.5066,160.08,160.03,1.24974331]
[1721313210346,16.5066,160.08,160.0,1.24962984]
[1721313210551,16.5066,160.08,160.04,6.2484]
[1721313210959,16.5066,160.08,160.05,6.2479]
[1721313211265,6.2476,160.07,160.02,6.2491]
[1721313211453,16.5066,160.08,160.03,6.2487]
[1721313211657,22.7536,160.08,160.03,6.2487]
[1721313211974,6.2473,160.07,160.03,6.2487]
[1721313212153,22.7535,160.08,160.04,6.2483]
[1721313212354,6.2477,160.06,160.02,6.249]
[1721313212540,6.2473,160.07,160.02,6.249]
[1721313212741,6.2477,160.06,160.02,6.249]
[1721313213162,65.2666,160.08,160.0,6.2498]
[1721313213342,65.2666,160.08,159.99,1.24992253]
[1721313213552,6.2477,160.06,160.01,6.2495]
[1721313214072,6.2481,160.05,160.01,6.2495]
[1721313214476,6.2477,160.06,160.01,6.2495]
[1721313215060,6.2481,160.05,160.0,6.2499]
[1721313215268,6.2477,160.06,160.01,6.2495]
[1721313215860,6.2477,160.06,160.02,6.249]
[1721313216549,6.2477,160.06,160.01,6.2494]
[1721313216874,6.2477,160.06,160.02,6.2492]
[1721313217247,6.2477,160.06,160.01,6.2494]
[1721313217445,18.78,160.06,159.97,1.24993238]
[1721313217649,18.78,160.06,159.93,6.1093]
[1721313217650,54.9672,160.05,159.93,1.2500691]
[1721313217873,6.2489,160.03,159.98,6.2507]
[1721313218273,6.2496,160.01,159.96,6.2515]
[1721313218475,6.2496,160.01,159.93,1.2503052]
[1721313218476,6.25,160.0,159.93,1.2503052]
[1721313218682,6.25,160.0,159.95,6.2518]
[1721313220053,6.25,160.0,159.96,6.2514]
[1721313221570,6.2504,159.99,159.92,1.25033144]
[1721313221763,6.2501,160.0,159.95,6.2519]
[1721313222346,22.5127,160.01,159.97,6.2511]
[1721313222757,22.5127,160.01,159.96,6.2514]
[1721313223366,16.2631,160.01,159.97,6.251]
[1721313223881,22.5128,160.01,159.96,6.2514]
[1721313225363,6.25,160.0,159.95,6.2518]
[1721313225973,22.5128,160.01,159.96,6.2514]
[1721313226174,16.2631,160.01,159.97,6.2511]
[1721313226564,6.2488,160.03,159.98,6.2505]
[1721313226766,6.2485,160.04,159.99,6.2503]
[1721313226972,6.2485,160.04,160.0,6.2499]
[1721313227186,6.2485,160.04,159.99,6.2502]
[1721313227773,6.2488,160.03,159.98,6.2506]
[1721313227977,6.2492,160.02,159.98,6.2506]
[1721313228178,6.2492,160.02,159.97,6.251]
[1721313228484,6.2496,160.01,159.96,7.50148984]
[1721313228687,6.2502,160.0,159.95,6.2519]
[1721313229884,6.2507,159.98,159.92,1.25032845]
[1721313230180,6.2511,159.97,159.93,6.2523]
[1721313231271,15.3805,159.96,159.91,6.2535]
[1721313232163,21.6321,159.96,159.91,6.2535]
[1721313232977,15.3805,159.96,159.92,6.253]
[1721313233276,21.6321,159.96,159.91,6.2534]
[1721313233681,21.6321,159.96,159.92,6.253]
[1721313234078,21.6321,159.96,159.91,6.2534]
[1721313235763,6.252,159.95,159.91,6.2534]
[1721313235968,6.252,159.95,159.88,1.25065242]
[1721313236287,6.252,159.95,159.9,6.2536]
[1721313237667,18.78,159.95,159.87,0.8372166]
[1721313237974,36.2328,159.93,159.88,6.2545]
[1721313238678,36.2328,159.93,159.89,6.2542]
[1721313239165,29.98,159.93,159.89,6.2542]
[1721313239365,36.2329,159.93,159.87,0.8372166]
[1721313239563,36.2329,159.93,159.88,6.2543]
[1721313240388,29.98,159.93,159.92,6.2531]
[1721313240595,21.6321,159.96,159.87,2.0879123]
[1721313240891,21.6321,159.96,159.91,6.2532]
[1721313241608,15.3805,159.96,159.92,6.2528]
[1721313241902,6.2514,159.97,159.92,6.2528]
[1721313242996,6.453,159.99,159.94,6.2522]
[1721313243292,12.7036,159.99,159.94,6.2522]
[1721313243822,12.7035,159.99,159.94,6.2522]
[1721313244471,12.7035,159.99,159.95,6.2519]
[1721313244680,6.2492,160.02,159.92,10.0]
[1721313244880,6.2496,160.01,159.97,6.2509]
[1721313245093,6.2496,160.01,159.93,46.25018674]
[1721313245094,6.2496,160.01,159.96,6.2515]
[1721313245298,6.2493,160.02,159.97,6.2511]
[1721313245500,6.4673,160.03,159.96,6.2514]
[1721313245501,6.2496,160.01,159.96,6.2514]
[1721313245703,25.2473,160.03,159.95,6.2519]
[1721313246000,6.2509,159.98,159.93,6.2526]
[1721313246305,6.2515,159.97,159.92,6.2528]
[1721313247371,6.2516,159.96,159.91,6.2534]
[1721313247702,6.252,159.95,159.9,6.2537]
[1721313248403,6.252,159.95,159.88,6.2545]
[1721313248404,6.253,159.93,159.88,6.2545]
[1721313248992,48.76,159.95,159.87,0.8372166]
[1721313249501,6.2539,159.9,159.87,0.8372166]
[1721313249686,6.2544,159.89,159.87,0.8372166]
[1721313252803,6.2539,159.91,159.87,0.8372166]
[1721313252997,29.98,159.92,159.87,7.0922166]
[1721313253201,48.76,159.95,159.88,6.2546]
[1721313253698,6.2526,159.94,159.87,0.8372166]
[1721313253903,29.98,159.95,159.88,6.2546]
[1721313254203,6.2524,159.94,159.89,6.2542]
[1721313256007,6.2528,159.93,159.88,6.2546]
[1721313256686,25.2473,159.97,159.88,6.2546]
[1721313256883,6.2528,159.93,159.89,6.2542]
[1721313257501,6.2539,159.9,159.87,0.8372166]
[1721313257702,6.2535,159.91,159.87,0.8372166]
[1721313257907,6.2536,159.91,159.87,0.8372166]
[1721313258087,6.2536,159.91,159.87,7.0922166]
[1721313258409,6.2532,159.92,159.87,7.0922166]
[1721313258709,6.254,159.9,159.87,0.8372166]
[1721313259090,6.2535,159.91,159.87,0.8372166]
[1721313260614,6.254,159.9,159.87,0.8372166]
[1721313261518,6.2544,159.89,159.87,0.8372166]
[1721313262417,34.4113,159.94,159.87,0.8372166]
[1721313262418,6.2546,159.88,159.87,0.8372166]
[1721313263406,25.0346,159.88,159.87,0.8372166]
[1721313264221,6.2546,159.88,159.87,0.8372166]
[1721313267702,25.0346,159.88,159.87,0.8372166]
[1721313269221,6.2574,159.81,159.75,1.2514444]
[1721313269423,6.2578,159.8,159.76,6.2593]
[1721313270152,29.98,159.84,159.77,1.25173745]
[1721313270460,29.98,159.84,159.79,6.2579]
[1721313270461,6.2566,159.84,159.79,6.2579]
[1721313270758,6.2559,159.85,159.8,6.2576]
[1721313270930,6.2555,159.86,159.81,6.2573]
[1721313271133,6.2551,159.87,159.82,6.2569]
[1721313271341,18.78,159.89,159.81,6.2573]
[1721313271342,6.2555,159.86,159.81,6.2573]
[1721313271761,6.2555,159.86,159.82,6.2569]
[1721313272067,18.78,159.88,159.81,6.2572]
[1721313272229,6.2564,159.84,159.8,15.5042]
[1721313272435,34.4172,159.88,159.8,15.5042]
[1721313272852,6.257,159.82,159.76,15.4272]
[1721313273168,6.2576,159.81,159.77,7.51958563]
[1721313273460,6.2576,159.81,159.76,21.6865]
[1721313273830,6.2571,159.82,159.77,6.2589]
[1721313274030,6.257,159.83,159.78,13.77837187]
[1721313274241,6.257,159.83,159.79,3.80427187]
[1721313274242,6.2578,159.8,159.79,3.80427187]
[1721313274449,6.2613,159.71,159.64,15.4272]
[1721313274741,25.0413,159.71,159.6,15.7705]
[1721313274943,70.0413,159.71,159.6,17.02345815]
[1721313275253,70.0413,159.71,159.62,6.2645]
[1721313275453,70.0413,159.71,159.61,6.2652]
[1721313275632,70.0413,159.71,159.6,15.7705]
[1721313275830,70.0413,159.71,159.6,22.0361]
[1721313276062,76.1542,159.71,159.6,22.0361]
[1721313278136,6.2641,159.64,159.58,15.666]
[1721313278444,6.2641,159.64,159.58,21.932]
[1721313278634,6.2645,159.63,159.58,21.932]
[1721313279462,6.2649,159.62,159.57,6.2668]
[1721313279971,25.0445,159.63,159.57,6.2667]
[1721313280264,6.265,159.62,159.57,6.2667]
[1721313280435,6.265,159.62,159.56,16.1592]
[1721313280436,25.0445,159.63,159.58,6.2664]
[1721313280636,18.78,159.61,159.54,0.8372166]
[1721313280835,18.78,159.61,159.55,6.2675]
[1721313281163,25.0461,159.59,159.54,16.5071166]
[1721313281529,18.78,159.58,159.54,0.8372166]
[1721313281734,6.2676,159.55,159.54,0.8372166]
[1721313281962,18.78,159.56,159.54,0.8372166]
[1721313282163,25.0475,159.56,159.54,0.8372166]
[1721313282345,18.78,159.56,159.54,0.8372166]
[1721313282862,12.8902,159.63,159.58,6.266]
[1721313283158,12.8902,159.63,159.6,6.2653]
[1721313283159,6.6257,159.63,159.6,6.2653]
[1721313283354,6.2634,159.66,159.6,6.2653]
[1721313283667,6.264,159.65,159.6,6.2653]
[1721313283867,6.0481,159.67,159.56,15.1011]
[1721313284048,6.0481,159.67,159.57,1.25320909]
[1721313284364,6.0481,159.67,159.54,0.8372166]
[1721313284572,15.6599,159.65,159.56,6.2672]
[1721313284856,15.6599,159.65,159.55,6.2676]
[1721313284857,25.0459,159.6,159.55,6.2676]
[1721313285041,18.78,159.6,159.54,22.7749166]
[1721313285261,18.78,159.6,159.56,6.267]
[1721313285486,6.2648,159.63,159.57,6.2667]
[1721313285693,18.78,159.64,159.57,6.2667]
[1721313285875,18.78,159.61,159.56,6.2671]
[1721313286195,18.78,159.61,159.54,16.5070166]
[1721313286196,18.78,159.61,159.55,6.2676]
[1721313286399,18.78,159.6,159.54,22.7749166]
[1721313286693,6.2665,159.58,159.54,0.8372166]
[1721313286897,18.78,159.6,159.54,0.8372166]
[1721313287064,6.2665,159.58,159.54,0.8372166]
[1721313287572,18.78,159.57,159.54,0.8372166]
[1721313287768,18.78,159.62,159.54,0.8372166]
[1721313287964,25.0464,159.58,159.54,0.8372166]
[1721313288295,6.2668,159.57,159.54,0.8372166]
[1721313288796,25.0465,159.58,159.54,0.8372166]
[1721313289192,18.78,159.57,159.54,0.8372166]
[1721313289483,25.0476,159.55,159.54,0.8372166]
[1721313289701,18.78,159.56,159.54,0.8372166]
[1721313290066,6.2664,159.59,159.54,7.1051166]
[1721313290274,33.97,159.6,159.54,0.8372166]
[1721313290275,6.2664,159.58,159.54,0.8372166]
[1721313290607,6.2673,159.56,159.54,0.8372166]
[1721313290782,33.97,159.6,159.54,0.8372166]
[1721313290783,25.0469,159.57,159.54,0.8372166]
[1721313290982,25.0468,159.57,159.54,0.8372166]
[1721313291196,6.531,159.63,159.54,0.8372166]
[1721313291506,6.531,159.63,159.54,16.5070166]
[1721313291721,6.266,159.6,159.55,6.2675]
[1721313291872,18.78,159.61,159.56,15.6676]
[1721313292079,6.2641,159.64,159.59,6.2659]
[1721313292601,6.2645,159.63,159.58,21.932]
[1721313292806,24.04435036,159.66,159.58,21.932]
[1721313292807,25.0442,159.64,159.59,6.2659]
[1721313293282,25.0442,159.64,159.58,15.6656]
[1721313293487,6.2645,159.63,159.59,6.2659]
[1721313293985,18.78,159.65,159.6,6.2655]
[1721313294375,18.78,159.64,159.58,15.6656]
[1721313294583,6.2648,159.63,159.58,21.9319]
[1721313294878,18.78,159.62,159.55,15.6685]
[1721313295080,6.2653,159.61,159.56,6.2671]
[1721313295284,6.2645,159.63,159.58,6.2664]
[1721313295506,25.0445,159.63,159.58,6.2664]
[1721313295694,25.0445,159.63,159.59,6.2659]
[1721313296005,25.0445,159.63,159.58,6.2661]
[1721313296213,18.78,159.66,159.54,2.0905622]
[1721313296528,34.4407,159.64,159.54,16.5068166]
[1721313296718,6.2651,159.62,159.58,6.2664]
[1721313296884,25.0445,159.63,159.58,6.2664]
[1721313297211,6.2648,159.62,159.58,6.2664]
[1721313297389,25.0445,159.63,159.58,6.2664]
[1721313297903,26.49149827,159.64,159.59,6.2659]
[1721313298320,1.44729827,159.63,159.54,0.8372166]
[1721313298613,6.2648,159.62,159.58,6.2663]
[1721313298812,1.44729827,159.63,159.58,6.2663]
[1721313298987,7.71179827,159.63,159.59,6.2659]
[1721313299188,7.71179827,159.63,159.58,6.2663]
[1721313299398,7.71179827,159.63,159.59,6.2659]
[1721313299609,1.44729827,159.63,159.6,6.2655]
[1721313299779,1.44729827,159.63,159.6,78.20823581]
[1721313299980,1.44729827,159.63,159.59,6.2659]
[1721313300603,6.2653,159.61,159.54,2.09042176]
[1721313300793,6.2653,159.61,159.54,22.09042176]
[1721313301119,1.44729827,159.63,159.54,0.8372166]
[1721313301297,6.2656,159.61,159.56,6.2669]
[1721313301504,6.2652,159.62,159.54,0.8372166]
[1721313301823,26.49199827,159.63,159.58,6.2662]
[1721313302116,7.71199827,159.63,159.58,6.2662]
[1721313302326,7.71199827,159.63,159.59,6.2659]
[1721313302495,6.264,159.65,159.58,15.6654]
[1721313302695,6.5893,159.67,159.58,15.6654]
[1721313302915,6.2649,159.62,159.58,21.9317]
[1721313303118,18.78,159.64,159.57,6.2667]
[1721313303524,6.2648,159.62,159.57,6.2667]
[1721313303726,25.0444,159.64,159.59,6.2657]
[1721313304033,7.51767868,159.63,159.52,37.57866305]
[1721313304200,1.25327868,159.63,159.53,66.25335771]
[1721313304408,1.25327868,159.63,159.53,21.25335771]
[1721313304602,6.2649,159.62,159.53,21.25335771]
[1721313307130,20.03327868,159.64,159.54,1.25335826]
[1721313307298,6.2662,159.59,159.52,7.38866305]
[1721313307499,1.25327868,159.58,159.53,1.25361478]
[1721313307724,7.51877868,159.61,159.53,1.25361478]
[1721313307919,1.25327868,159.6,159.53,1.25361478]
[1721313309044,6.2653,159.61,159.53,1.25361478]
[1721313309045,1.25327868,159.59,159.53,1.25361478]
[1721313309244,17.53327868,159.62,159.53,1.25361478]
[1721313309441,30.19,159.66,159.54,10.0]
[1721313309645,6.5893,159.67,159.55,66.25309012]
[1721313309836,12.8523,159.67,159.55,66.25309012]
[1721313310034,6.2634,159.66,159.55,66.25309012]
[1721313310246,30.19,159.65,159.54,1.25318078]
[1721313310554,18.78,159.63,159.55,1.25326504]
[1721313310739,18.78,159.63,159.52,8.64215667]
[1721313310933,18.78,159.63,159.52,7.38866305]
[1721313311135,6.266,159.6,159.52,7.38866305]
[1721313311327,18.78,159.61,159.52,7.38866305]
[1721313311533,6.2663,159.59,159.52,6.38866305]
[1721313311941,6.2665,159.58,159.52,6.38866305]
[1721313312256,6.2677,159.55,159.52,6.38866305]
[1721313312561,6.2676,159.56,159.47,1.25385552]
[1721313312856,6.2676,159.55,159.47,1.25385552]
[1721313313059,6.2681,159.54,159.47,1.25385552]
[1721313313254,25.0475,159.56,159.47,1.25385552]
[1721313313553,25.0477,159.55,159.47,1.25385552]
[1721313313767,18.78,159.55,159.46,6.6534]
[1721313313964,18.78,159.55,159.47,1.2540023]
[1721313314767,25.048,159.54,159.46,22.5935]
[1721313315062,6.2684,159.53,159.46,22.5935]
[1721313315639,6.2688,159.52,159.46,15.9401]
[1721313315838,18.78,159.53,159.46,15.9401]
[1721313316062,6.2689,159.52,159.46,15.9401]
[1721313316565,25.0485,159.53,159.46,15.9401]
[1721313317065,6.2681,159.54,159.46,15.9401]
[1721313317269,6.2685,159.53,159.46,15.9401]
[1721313317461,18.78,159.54,159.46,15.9401]
[1721313317662,6.2685,159.53,159.46,15.9401]
[1721313317975,18.78,159.53,159.43,1.25415023]
[1721313318147,6.2698,159.5,159.43,1.25415023]
[1721313318556,6.27,159.49,159.42,21.7206]
[1721313318755,6.2696,159.5,159.42,21.7206]
[1721313318940,6.2692,159.51,159.43,1.25439014]
[1721313319563,25.0492,159.51,159.42,21.7206]
[1721313319786,18.78,159.51,159.42,21.7206]
[1721313320058,6.2696,159.5,159.42,21.7206]
[1721313320244,18.78,159.51,159.43,1.2543436]
[1721313320445,25.0497,159.5,159.42,16.3685]
[1721313321075,18.78,159.5,159.42,16.3685]
[1721313321254,6.2706,159.48,159.42,16.3685]
[1721313321447,18.78,159.49,159.42,16.3685]
[1721313321647,6.2704,159.48,159.42,16.3685]
[1721313321847,6.536,159.56,159.43,1.25448503]
[1721313322070,6.268,159.54,159.43,1.25448503]